Workbook

Sheet Introduction
A3: . . . . . . . . . . . . . . . . . . . . . . . . . . . . . . . . . . . . . . . . . . . . . . . . .
A5: Guidelines For Estimating
A6: Strawberry U-Pick Production Costs
B14: The following budget estimates the cost of producing Strawberries in Manitoba. General Manitoba Agriculture recommendations are assumed in using fertilizers and chemical inputs. These figures provide an economic evaluation of the crops and estimated yields required to cover all costs. Costs include labour, investment and depreciation, but do not include management costs, nor do they necessarily represent the average cost of production in Manitoba.
B23: These budgets may be adjusted by putting in your own figures. As a producer you are encouraged to calculate your own costs of production for various crops. On each farm, costs and yields differ due to soil type, climate and agronomic practices.
A28: is also available to help
B29: determine machinery costs.
B32: This tool is available as an Excel worksheet at:
B48: Note: This budget is only a guide and is not intended as an in depth study of the cost of production of this industry. Interpretation and use of this information is the responsibility of the user. If you need help with a budget, contact a Farm Management Specialist.

Sheet Summary
B1: ="Strawberry - Cost of Production Summary " -> Strawberry - Cost of Production Summary
B2: ="Based on "&'Fixed Cost Input'!C11&" acres" -> Based on 20 acres
B3: ="Based on "&'Fixed Cost Input'!C6&" acres" -> Based on 10 acres
D4: Establishment1 | E4: Picking Years
D5: Cost $/acre | E5: Cost /acre | F5: Cost/lb | G5: Your Cost
B6: Operating Costs
A7: A | B7: Establishment cost (amortized)1 | D7: ="-" -> - | E7: ='Fixed Cost Input'!C26 -> 3722.088869 | F7: ="-" -> -
B8: Seed & Treatment | D8: ='Seed, Fertilizer & Chemical'!D4 -> 2240 | E8: ="-" -> - | F8: =ROUND(E7/$E$35,4) -> 0.6893
B9: Fertilizer | D9: ='Seed, Fertilizer & Chemical'!J22 -> 179.8558661 | E9: ='Seed, Fertilizer & Chemical'!J23 -> 170.1578277 | F9: =ROUND(E9/$E$35,4) -> 0.0315
B10: Pesticide | D10: ='Seed, Fertilizer & Chemical'!E29 -> 120 | E10: ='Seed, Fertilizer & Chemical'!E30 -> 266 | F10: 0.0493
B11: Fuel | D11: ='Operating Costs'!G18 -> 54.66 | E11: ='Operating Costs'!G26 -> 48.52 | F11: 0.009
B12: Irrigation | D12: ='Operating Costs'!D34 -> 15.96 | E12: ='Operating Costs'!E34 -> 63.84 | F12: 0.0118
B13: Machinery Operating & Lease | D13: ='Operating Costs'!$D$6+'Fixed Cost Input'!$D$71 -> 25 | E13: ='Operating Costs'!$D$6+'Fixed Cost Input'!$D$71 -> 25 | F13: 0.0046
B14: Labour - hired | D14: ='Operating Costs'!J40 -> 1066 | E14: ='Operating Costs'!J41 -> 1734 | F14: 0.3211
B15: Crop Insurance (Establishment only) | D15: ='Operating Costs'!$C$70 -> 64.8 | E15: ="-" -> - | F15: ="-" -> -
B16: Hail Insurance | D16: ='Operating Costs'!$C$71 -> 280 | E16: ='Operating Costs'!$C$71 -> 280 | F16: =ROUND(E16/$E$35,4) -> 0.0519
B17: Land Taxes | D17: ='Operating Costs'!$D$4 -> 20 | E17: ='Operating Costs'!$D$4 -> 20 | F17: 0.0037
B18: Miscellaneous Cost | D18: ='Operating Costs'!D54 -> 578.255 | E18: ='Operating Costs'!D54 -> 578.255 | F18: 0.1071
B19: Rental and Custom Charges | D19: ='Operating Costs'!H64 -> 0 | E19: ='Operating Costs'!H65 -> 0 | F19: 0
B20: Repairs & Maintenance Cost | D20: ='Operating Costs'!D59 -> 378.2625 | E20: ='Operating Costs'!D59 -> 378.2625 | F20: 0.07
B21: Interest on Operating | D21: =SUM(D8:D20)*'Operating Costs'!D3 -> 351.5955356 | E21: =SUM(E7:E20)/2*'Operating Costs'!D3 -> 255.0143469 | F21: 0.0472
B22: Total Operating Costs | D22: =SUM(D8:D21) -> 5374.388902 | E22: =SUM(E7:E21) -> 7541.138544 | F22: =SUM(F8:F21) -> 1.3965
A24: B. | B24: Fixed Costs
B25: Land Costs | D25: ='Fixed Cost Input'!$C$14 -> 327.6459494 | E25: ='Fixed Cost Input'!$C$14 -> 327.6459494 | F25: =ROUND(E25/$E$35,4) -> 0.0607
B26: Machinery Costs | D26: ='Fixed Cost Input'!$G$16 -> 2949.878805 | E26: ='Fixed Cost Input'!$G$16 -> 2949.878805 | F26: =ROUND(E26/$E$35,4) -> 0.5463
B27: Storage & Irrigation Costs | D27: ='Fixed Cost Input'!G33 -> 2153.656848 | E27: ='Fixed Cost Input'!G33 -> 2153.656848 | F27: =ROUND(E27/$E$35,4) -> 0.3988
B28: Total Fixed Costs | D28: =SUM(D25:D27) -> 5431.181602 | E28: =SUM(E25:E27) -> 5431.181602 | F28: =ROUND(E28/$E$35,4) -> 1.0058
A30: C. | B30: Total Costs | D30: =D22+D28 -> 10805.5705 | E30: =E22+E28 -> 12972.32015 | F30: =ROUND(E30/$E$35,4) -> 2.4023
B32: Profitability Analysis
B33: Estimated Farmgate
B34: Price per Unit | E34: ='Seed, Fertilizer & Chemical'!$E$46 -> 5
B35: Target Yield per acre (lbs) | E35: =ROUNDUP('Seed, Fertilizer & Chemical'!E45,-2) -> 5400
B36: Gross Revenue / acre | E36: =ROUND(((E34)*E35),2) -> 27000
B38: Operating Expense Ratio | E38: =SUM(E22/E36) -> 0.2793014276
B40: Marginal Returns
B41: Over Operating Costs | E41: =SUM(E36-E22) -> 19458.86146
B42: Over Total Costs (Net Profit) | E42: =SUM(E36-E30) -> 14027.67985
B45: Breakeven Analysis
B46: Breakeven Price ($ Per lb.)
B47: Operating Costs | E47: =E22/E35 -> 1.396507138
B48: Over Fixed Costs | E48: =(E28/E35) -> 1.005774371
B49: Over Total Costs | E49: =SUM(E47:E48) -> 2.402281509
B51: Breakeven Yield (lbs)
B52: Over Operating Costs | E52: =ROUND(E22/E34,0) -> 1508
B53: Over Fixed Costs | E53: =ROUND(E28/E34, 0) -> 1086
B54: Over Total Costs | E54: =ROUND(E30/E34, 0) -> 2594
B56: Breakeven Yield Risk Ratio | E56: =SUM(E35/E54) -> 2.081727062
B57: (Yield per acre/BE Yield)
A58: ="1. The cost of establishing the crop of $"&TEXT(D30,"0.00")&", includes the pre plant and planting years, was amortized over $"&TEXT(E7,"0.00")&"" -> 1. The cost of establishing the crop of $10805.57, includes the pre plant and planting years, was amortized over $3722.09
A59: Note: This budget is only a guide and is not intended as an in depth study of the cost of production of this industry. Interpretation and utilization of this information is the responsibility of the user.

Sheet Seed, Fertilizer & Chemical
A1: Strawberry Planting
B3: Transplanting Rate (plants/ac) | C3: Plant Cost (per plant) | D3: Cost per Acre
A4: Strawberry Plants | B4: 8000 | C4: 0.28 | D4: =C4*B4 -> 2240
A7: Fertilizer
C9: Bulk Price | E9: Actual Nutrient | S9: Nitrogen | U9: Sulphur
A10: Fertilizer Type | C10: $/tonne | E10: $/lb | S10: Usage | U10: Usage
A11: Nitrogen: (urea) 46-0-0 | C11: 900 | E11: =SUM(C11/(2204.5855*0.46)) -> 0.8874782761 | S11: 1 | U11: -
A12: Nitrogen: (NH3) 82-0-0 | C12: 1090 | E12: =SUM(C12/(2204.5855*0.82)) -> 0.6029561079 | S12: 0 | U12: -
A13: Nitrogen: (liquid) 28-0-0 | C13: 440 | E13: =SUM(C13/(2204.5855*0.28)) -> 0.7128000123 | S13: 0 | U13: -
A14: Phosphorus: 11-52-0 | C14: 1250 | E14: =SUM((C14-(E11*(0.11*2204.5855)))/(2204.5855*0.52)) -> 0.902648845 | U14: - | W14: -
A15: Potash: 0-0-60 | C15: 650 | E15: =SUM(C15/(2204.5855*0.6)) -> 0.4914000085 | U15: - | W15: -
A16: Sulphur: 20.5-0-0-24 | C16: 850 | E16: =SUM((C16-(E11*(0.205*2204.5855)))/(2204.5855*0.24)) -> 0.8484456668 | U16: 1 | W16: -
A17: MES S15: 13-33-0-15 | C17: 1140 | E17: =SUM((C17-(E11*(0.13*2204.5855))-(E14*(0.33*2204.5855)))/(2204.5855*0.15)) -> 0.6923847611 | J17: - | U17: 0
S18: ***HIDE***
B19: Amount of Actual Pounds of Elements Applied Per Acre | T19: 82-0-0 | X19: 28-0-0 | AD19: 46-0-0 | AH19: 11-52-0 | AK19: 0-0-60 | AN19: 20.5-0-0-24 | AQ19: 13-33-0-15
B20: Nitrogen | D20: Phosphorus | F20: Potash | H20: Sulphur | J20: Total | S20: preseed | T20: preseed | U20: preseed | V20: preseed | W20: suppl | X20: suppl | Y20: suppl | Z20: suppl | AA20: blend | AB20: blend | AC20: blend | AD20: blend | AE20: blend | AF20: blend | AG20: blend | AH20: blend | AI20: blend | AJ20: blend | AK20: blend | AL20: blend | AM20: blend | AN20: blend | AO20: blend | AP20: blend | AQ20: blend | AR20: blend | AS20: blend | AT20: N phos
A21: Crop | B21: lbs | C21: $/acre | D21: lbs | E21: $/acre | F21: lbs | G21: $/acre | H21: lbs | I21: $/acre | J21: $/acre | S21: N actual | T21: N lbs | U21: N MT | V21: N cost | W21: N actual | X21: N lbs | Y21: N MT | Z21: N cost | AA21: N phos | AB21: N sul1 | AC21: N sul2 | AD21: N urea | AE21: N lbs | AF21: N MT | AG21: N cost | AH21: phos lbs | AI21: phos MT | AJ21: phos cost | AK21: potash | AL21: pot MT | AM21: pot cost | AN21: sul 1 lbs | AO21: sul 1 MT | AP21: sul 1 cost | AQ21: sul 2 lbs | AR21: sul 2 MT | AS21: sul 2 cost | AT21: lbs
A22: Strawberry Planting | B22: 70 | C22: =IF(SUM($S$11:$S$13)<>100%,"ERROR",SUM(V22+Z22+AG22)) -> 31.97887467 | D22: 100 | E22: =AJ22 -> 109.0377463 | F22: 30 | G22: =AM22 -> 14.74190329 | H22: 15 | I22: =IF(SUM($U$16:$U$17)<>100%,"ERROR",AP22+AS22) -> 24.09734192 | J22: =C22+E22+G22+I22 -> 179.8558661 | S22: =SUM(B22*$S$12) -> 0 | T22: =MAXA(0,(S22)/(0.82)) -> 0 | U22: =(T22)/2204.6 -> 0 | V22: =SUM(U22*$C$12) -> 0 | W22: =SUM(B22*$S$13) -> 0 | X22: =MAXA(0,(W22)/(0.28)) -> 0 | Y22: =(X22)/2204.6 -> 0 | Z22: =SUM(Y22*$C$13) -> 0 | AA22: =SUM(AH22*0.11) -> 21.15384615 | AB22: =SUM(AN22*0.205) -> 12.8125 | AC22: =SUM(AQ22*0.13) -> 0 | AD22: =SUM(B22-(AA22+AB22+AC22+W22+S22)) -> 36.03365385 | AE22: =MAXA(0,(AD22)/(0.46)) -> 78.3340301 | AF22: =(AE22)/2204.6 -> 0.03553208296 | AG22: =SUM(AF22*$C$11) -> 31.97887467 | AH22: =MAXA(0,(D22-(AQ22*0.33))/0.52) -> 192.3076923 | AI22: =(AH22)/2204.6 -> 0.087230197 | AJ22: =SUM(AI22*$C$14) -> 109.0377463 | AK22: =SUM(F22/0.6) -> 50 | AL22: =(AK22)/2204.6 -> 0.02267985122 | AM22: =SUM(AL22*$C$15) -> 14.74190329 | AN22: =MAXA(0,SUM(H22*$U$16)/0.24) -> 62.5 | AO22: =(AN22)/2204.6 -> 0.02834981403 | AP22: =SUM(AO22*$C$16) -> 24.09734192 | AQ22: =MAXA(0,SUM(H22*$U$17)/0.15) -> 0 | AR22: =(AQ22)/2204.6 -> 0 | AS22: =SUM(AR22*$C$17) -> 0
A23: Strawberry Picking | B23: 150 | C23: =IF(SUM($S$11:$S$13)<>100%,"ERROR",SUM(V23+Z23+AG23)) -> 125.5759279 | D23: 20 | E23: =AJ23 -> 21.80754925 | F23: 30 | G23: =AM23 -> 14.74190329 | H23: 5 | I23: =IF(SUM($U$16:$U$17)<>100%,"ERROR",AP23+AS23) -> 8.032447307 | J23: =C23+E23+G23+I23 -> 170.1578277 | S23: =SUM(B23*$S$12) -> 0 | T23: =MAXA(0,(S23)/(0.82)) -> 0 | U23: =(T23)/2204.6 -> 0 | V23: =SUM(U23*$C$12) -> 0 | W23: =SUM(B23*$S$13) -> 0 | X23: =MAXA(0,(W23)/(0.28)) -> 0 | Y23: =(X23)/2204.6 -> 0 | Z23: =SUM(Y23*$C$13) -> 0 | AA23: =SUM(AH23*0.11) -> 4.230769231 | AB23: =SUM(AN23*0.205) -> 4.270833333 | AC23: =SUM(AQ23*0.13) -> 0 | AD23: =SUM(B23-(AA23+AB23+AC23+W23+S23)) -> 141.4983974 | AE23: =MAXA(0,(AD23)/(0.46)) -> 307.6052118 | AF23: =(AE23)/2204.6 -> 0.1395288088 | AG23: =SUM(AF23*$C$11) -> 125.5759279 | AH23: =MAXA(0,(D23-(AQ23*0.33))/0.52) -> 38.46153846 | AI23: =(AH23)/2204.6 -> 0.0174460394 | AJ23: =SUM(AI23*$C$14) -> 21.80754925 | AK23: =SUM(F23/0.6) -> 50 | AL23: =(AK23)/2204.6 -> 0.02267985122 | AM23: =SUM(AL23*$C$15) -> 14.74190329 | AN23: =MAXA(0,SUM(H23*$U$16)/0.24) -> 20.83333333 | AO23: =(AN23)/2204.6 -> 0.009449938008 | AP23: =SUM(AO23*$C$16) -> 8.032447307 | AQ23: =MAXA(0,SUM(H23*$U$17)/0.15) -> 0 | AR23: =(AQ23)/2204.6 -> 0 | AS23: =SUM(AR23*$C$17) -> 0
A25: Crop Protection
B27: Weed Control | C27: Disease Control | D27: Insect Control | E27: Total Cost | S27: Hail Insurance Premiums
B28: $/ac | C28: $/ac | D28: $/ac | E28: $/ac | S28: Area # 2 | T28: Area # 5 | U28: Area # 6 | V28: Area # 12
A29: Planting | B29: 120 | C29: 0 | D29: 0 | E29: =B29+C29+D29 -> 120 | S29: 300 | T29: 330 | U29: 270 | V29: 220 | W29: =AVERAGE(S29:V29) -> 280
A30: Picking | B30: 180 | C30: 80 | D30: 6 | E30: =B30+C30+D30 -> 266
A31: Note:
A32: Pre-emergent burn off is not included in weed control costs.
A33: Chemical costs do not include year end rebates or bundling discounts.
A34: Disease Control costs do not include custom application costs.
A36: Crop Rotations and Yields
B38: Crop Rotation and Yields
D39: Year | E39: lbs/acre
B40: Planting Year | D40: 1
B41: 1st Picking | D41: 2 | E41: 6600
B42: 2nd Picking | D42: 3 | E42: 5500
B43: 3rd Picking | D43: 4 | E43: 4000
D44: Total Yield (lbs/acre) | E44: =SUM(E40:E43) -> 16100
D45: Average Yield (lbs/acre) | E45: =ROUND(SUM(E44/COUNTA(E40:E43)),0) -> 5367
D46: Market Price per Pound | E46: 5
A49: Note: This budget is only a guide and is not intended as an in depth study of the cost of production of this industry. Interpretation and use of this
A50: information is the responsibility of the user.

Sheet Operating Costs
A1: Operating Costs
B3: Interest Rate on Operating | D3: 0.07
B4: Land Taxes ($/acre) | D4: 20
B5: Labour rate ($/hour) | D5: 20
B6: Machinery Operating ($/acre) | D6: 25
B7: Cost per round bale of straw | D7: 70
B8: Fuel Cost ($/litre) | D8: 1.1
A10: Field Fuel Usage
C12: Times | D12: Width | E12: Speed | F12: Tractor | G12: Fuel | H12: Capacity | I12: Time | J12: Maint
B13: Operation | C13: Over | D13: Feet | E13: MPH | F13: HP | G13: Per Acre | H13: Ac/Hr | I13: Hr./Ac. | J13: & Lub
B14: Planting | C14: 1 | D14: 5 | E14: 1 | F14: 50 | G14: =(0.25*(F14*0.75))*I14*$D$8 -> 20.625 | H14: =(D14*E14)/10 -> 0.5 | I14: =IF(ISERROR(1/H14),0,(1/H14)*(C14)) -> 2 | J14: =0.1*G14 -> 2.0625
B15: Cultivate | C15: 3 | D15: 5 | E15: 5 | F15: 50 | G15: =(0.25*(F15*0.75))*I15*$D$8 -> 12.375 | H15: =(D15*E15)/10 -> 2.5 | I15: =IF(ISERROR(1/H15),0,(1/H15)*(C15)) -> 1.2 | J15: =0.1*G15 -> 1.2375
B16: Spray | C16: 1 | D16: 25 | E16: 4 | F16: 50 | G16: =(0.25*(F16*0.75))*I16*$D$8 -> 1.03125 | H16: =(D16*E16)/10 -> 10 | I16: =IF(ISERROR(1/H16),0,(1/H16)*(C16)) -> 0.1 | J16: =0.1*G16 -> 0.103125
B17: Straw Spreading | C17: 1 | D17: 5 | E17: 2 | F17: 100 | G17: =(0.25*(F17*0.75))*I17*$D$8 -> 20.625 | H17: =(D17*E17)/10 -> 1 | I17: =IF(ISERROR(1/H17),0,(1/H17)*(C17)) -> 1 | J17: =0.1*G17 -> 2.0625
C18: Total Establishment Field Operation Fuel Costs ($/acre) | G18: =ROUND(SUM(G14:G17),2) -> 54.66
B20: Straw removal | C20: 1 | D20: 5 | E20: 5 | F20: 50 | G20: =(0.25*(F20*0.75))*I20*$D$8 -> 4.125 | H20: =(D20*E20)/10 -> 2.5 | I20: =IF(ISERR(1/H20),0,(1/H20)*C20) -> 0.4 | J20: =0.1*G20 -> 0.4125
B21: Spray | C21: 5 | D21: 25 | E21: 4 | F21: 50 | G21: 5.15625 | H21: 10 | I21: 0.5 | J21: 0.515625
B22: Mowing | C22: 1 | D22: 5 | E22: 5 | F22: 50 | G22: 4.125 | H22: 2.5 | I22: 0.4 | J22: 0.4125
B23: Rototilling | C23: 2 | D23: 5 | E23: 3 | F23: 50 | G23: 13.75 | H23: 1.5 | I23: 1.333333333 | J23: 1.375
B24: Fertilizer | C24: 2 | D24: 40 | E24: 7 | F24: 50 | G24: 0.7366071429 | H24: 28 | I24: 0.07142857143 | J24: 0.07366071429
B25: Straw Spreading | C25: 1 | D25: 5 | E25: 2 | F25: 100 | G25: 20.625 | H25: 1 | I25: 1 | J25: 2.0625
C26: Total Picking Field Operation Fuel Costs ($/acre) | G26: =ROUND(SUM(G20:G25),2) -> 48.52
A28: Irrigation Cost
B30: Irrigation Fuel Costs | D30: Establishment | E30: Picking
B31: Inches water applied | D31: 3 | E31: 12
B32: Hours/acre for 1" of water | D32: 4 | E32: 4
B33: Hourly pumping costs | D33: 1.33 | E33: 1.33
C34: Total Cost ($/acre) | D34: =D31*D32*D33 -> 15.96 | E34: =E31*E32*E33 -> 63.84
A36: Labour Cost
C38: Hours Required per Acre
C39: Weed Control | D39: De-blossoming | E39: Irrigation | F39: Straw Spreading | G39: Field Operation | H39: U-Pick Operation | I39: Total Hours | J39: Total ($/acre)
B40: Establishment | C40: 30 | D40: 8 | E40: 6 | F40: 5 | G40: 4.3 | H40: 0 | I40: =SUM(C40:H40) -> 53.3 | J40: =I40*$D$5 -> 1066
B41: Picking | C41: 30 | D41: 0 | E41: 6 | F41: 5 | G41: 3.7 | H41: 42 | I41: =SUM(C41:H41) -> 86.7 | J41: =I41*$D$5 -> 1734
A43: Miscellaneous Cost
B45: Plant (total $) | D45: 750
B46: Advertising (total $) | D46: 500
B47: Utilities (total $) | D47: =150+1000 -> 1150
B48: Pails/Baskets ($/each) | C48: 0.75 | D48: ='Seed, Fertilizer & Chemical'!E45/5*C48 -> 805.05
B49: Straw bales per acre | C49: 3 | D49: =C49*$D$7*'Fixed Cost Input'!C6 -> 2100
B50: Other Costs ($/acre) | C50: 17.75 | D50: =SUM(C50*'Fixed Cost Input'!C6) -> 177.5
B51: Washrooms (total $) | D51: 300
B52: ="Total Miscellaneous Cost ($/"&'Fixed Cost Input'!C6&" acres)" -> Total Miscellaneous Cost ($/10 acres) | D52: =SUM(D45:D51) -> 5782.55
B54: Total Miscellaneous Cost ($/acre) | D54: =D52/'Fixed Cost Input'!C6 -> 578.255
A56: Repairs & Maintenance Cost
B58: % rate of investment | D58: 0.015
B59: Total Repair & Maintenance Costs | D59: =D58*('Fixed Cost Input'!D42+'Fixed Cost Input'!D62+'Fixed Cost Input'!D71)/'Fixed Cost Input'!C6 -> 378.2625
A61: Rental and Custom Charges
B63: Rental & Custom Charges | D63: Seeding | E63: Application | F63: Harvest | G63: General | H63: Total
B64: Establishment | D64: - | E64: - | F64: - | G64: - | H64: =SUM(D64:G64) -> 0
B65: Picking | D65: - | E65: - | F65: - | G65: - | H65: =SUM(D65:G65) -> 0
A67: Crop & Hail Insurance
C69: Crop Insurance
B70: Establishment | C70: =('Seed, Fertilizer & Chemical'!B4/100)*0.81 -> 64.8
B71: Hail Insurance | C71: ='Seed, Fertilizer & Chemical'!W29 -> 280
B73: Note: This budget is only a guide and not intended as an in depth study of the cost of production of this industry. Interpretation and utilization of this information is the
B74: responsibility of the user.

Sheet Fixed Cost Input
A2: Fixed Costs
A4: Land | F4: Machinery
A5: Average Land Value | C5: 5000 | F5: Total Investment ($/acre) | G5: =ROUND(D62/C6,2) -> 14017.5
A6: Strawberry Acres | C6: 10 | F6: Residual Value (End of Useful Life) | G6: 0.25
A7: Owned Land Equity | C7: 0.3 | F7: Useful Life (years) | G7: 15
A8: Land Financed | C8: =SUM(1-C7) -> 0.7 | F8: Owned Equipment Equity | G8: 0.2
A9: Land Opportunity Cost | C9: 0.015 | F9: Equipment Financed | G9: =SUM(1-G8) -> 0.8
A10: Land cost ($/acre) | F10: Machinery Opportunity Cost | G10: 0.015
A11: Finance Rate & Term | B11: 0.06 | C11: 20 | D11: Years | F11: Machinery Cost ($/acre)
A12: Principal & Interest Cost | C12: =-PMT(B11,C11,(C5*C8),0) -> 305.1459494 | F12: Finance Rate & Term | G12: 0.07 | H12: 7 | I12: Years
A13: Owned Land Opportunity Cost | C13: =SUM(C5*C7)*C9 -> 22.5 | F13: Principal & Interest Cost | G13: =-PMT(G12,H12,G5*G9) -> 2080.793805
A14: Total Cost | C14: =SUM(C12:C13) -> 327.6459494 | F14: Machinery Depreciation Cost | G14: =(G5-(G5*G6))/G7 -> 700.875
F15: Owned Machinery Opportunity Cost | G15: =SUM(G5*G9)*(G10) -> 168.21
A16: Strawberry Establishment | F16: Total Cost | G16: =SUM(G13:G15) -> 2949.878805
A17: Establishment cost ($/acre) | C17: =ROUND(Summary!D30,0) -> 10806
A18: Strawberry Acres | C18: =C6 -> 10 | F18: Storage & Irrigation
A19: Establishment Equity | C19: 0.1 | F19: Total Investment Storage ($/ac) | G19: =ROUND((D37+D38+D39+D40)/C6,2) -> 8200
A20: ="Establishment Financed ("&TEXT(C17*C20,"$#,###")&" per acre)" -> Establishment Financed ($9,725 per acre) | C20: =SUM(1-C19) -> 0.9 | F20: Total Investment Irrigation ($/ac) | G20: =ROUND(D41/C6,2) -> 3000
A21: Establishment Opportunity Cost (Investment Rate) | C21: 0.015 | F21: Residual Value (End of Useful Life) | G21: 0.25
A22: Establishment cost ($/acre) | F22: Useful Life Storage (years) | G22: 20
A23: Finance Rate & Term | B23: =G12 -> 0.07 | C23: =COUNTA('Seed, Fertilizer & Chemical'!E40:E43) -> 3 | D23: Years | F23: Useful Life Irrigation (years) | G23: 15
A24: Principle & Interest Cost | C24: =-PMT(B23,C23,C17*C20,0) -> 3705.879869 | F24: Owned S & I Equity | G24: 0.2
A25: Owned Land Opportunity Cost | C25: =SUM(C17*C19)*(C21) -> 16.209 | F25: S & I Financed | G25: =SUM(1-G24) -> 0.8
A26: Total Cost | C26: =SUM(C24:C25) -> 3722.088869 | F26: S & I Opportunity Cost | G26: 0.015
F27: Storage & Irrigation Cost ($/acre)
F28: Finance Rate & Term | G28: 0.07 | H28: 7 | I28: Years
F29: Principal & Interest Cost | G29: =-PMT(G28,H28,(G19+G20)*G25) -> 1662.556848
F30: Storage Depreciation Cost | G30: =(G19-(G19*G21))/G22 -> 307.5
F31: Irrigation Depreciation Cost | G31: =(G20-(G20*G21))/G23 -> 150
F32: Owned S & I Opportunity Cost | G32: =SUM((G19+G20)*G24)*(G26) -> 33.6
A33: Total Debt ($/acre) | C33: =((C5)*C8)+(G5*G9)+((G19+G20)*G25)+(C17*C20) -> 33399.4 | F33: Total Cost | G33: =SUM(G29:G32) -> 2153.656848
A35: Storage & Irrigation
B36: Market Value | C36: Strawberry Usage % | D36: Strawberry Allocation
A37: Storage Shed | B37: 60000 | C37: 0.9 | D37: =SUM(B37*C37) -> 54000
A38: Cooler | B38: 10000 | C38: 1 | D38: =SUM(B38*C38) -> 10000
A39: Booth | B39: 3000 | C39: 1 | D39: 3000
A40: Miscellaneous | B40: 15000 | C40: 1 | D40: 15000
A41: Irrigation Equipment | B41: 30000 | C41: 1 | D41: 30000
A42: Storage & Irrigation TOTAL | B42: =SUM(B37:B41) -> 118000 | D42: =SUM(D37:D41) -> 112000
A43: Storage & Irrigation Total per acre | B43: =B42/C6 -> 11800 | D43: =D42/C6 -> 11200
A45: Equipment Inventory and Current Values
A47: Power Equipment | B47: Market Value | C47: Strawberry Usage % | D47: Strawberry Allocation | F47: Harvest Equipment | G47: Market Value | H47: Strawberry Usage % | I47: Strawberry Allocation
A48: Tractor - 50 HP | B48: 60000 | C48: 1 | D48: =SUM(B48*C48) -> 60000 | G48: 0 | H48: 0 | I48: =SUM(G48*H48) -> 0
A49: Tractor - 100 HP | B49: 100000 | C49: 0.33 | D49: =SUM(B49*C49) -> 33000 | G49: 0 | H49: 0 | I49: =SUM(G49*H49) -> 0
B50: 0 | C50: 0 | D50: =SUM(B50*C50) -> 0 | G50: 0 | H50: 0 | I50: 0
B51: 0 | C51: 0 | D51: 0 | G51: 0 | H51: 0 | I51: 0
A52: Total Inventory | B52: =SUM(B48:B51) -> 160000 | D52: =SUM(D48:D51) -> 93000 | F52: Total Inventory | G52: =SUM(G48:G51) -> 0 | I52: =SUM(I48:I51) -> 0
A54: Seeding & Tillage | B54: Market Value | C54: Strawberry Usage % | D54: Strawberry Allocation | F54: Spraying & Misc. | G54: Market Value | H54: Strawberry Usage % | I54: Strawberry Allocation
A55: Planter | B55: 5000 | C55: 1 | D55: =SUM(B55*C55) -> 5000 | F55: Sprayer - 25 ft | G55: 10000 | H55: 1 | I55: =SUM(G55*H55) -> 10000
A56: Rotovator | B56: 8000 | C56: 0.9 | D56: =SUM(B56*C56) -> 7200 | F56: Straw spreader | G56: 39500 | H56: 0.25 | I56: =SUM(G56*H56) -> 9875
A57: Cultivator | B57: 1500 | C57: 0.9 | D57: 1350 | F57: Fertilizer Spreader | G57: 40000 | H57: 0.25 | I57: 10000
B58: 0 | C58: 0 | D58: 0 | F58: Mower | G58: 5000 | H58: 0.75 | I58: 3750
B59: 0 | C59: 0 | D59: 0 | G59: 0 | H59: 0 | I59: 0
A60: Total Inventory | B60: =SUM(B55:B59) -> 14500 | D60: =SUM(D55:D59) -> 13550 | F60: Total Inventory | G60: =SUM(G55:G59) -> 94500 | I60: =SUM(I55:I59) -> 33625
A62: Owned Equipment TOTAL | B62: =SUM(D52+I52+I60+D60+D42) -> 252175 | D62: =SUM(D52+D60+I52+I60) -> 140175
A63: Owned Equipment TOTAL / acre | B63: =B62/C6 -> 25217.5 | D63: =D62/C6 -> 14017.5
A65: Leased Equipment Inventory and Current Values
A66: Seeding, Tillage, Spraying etc | B66: Annual Lease | C66: Strawberry Usage % | D66: Strawberry Allocation
B67: 0 | C67: 0 | D67: 0
B68: 0 | C68: 0 | D68: 0
B69: 0 | C69: 0 | D69: 0
A70: Lease Equipment TOTAL | B70: =SUM(B67:B69) -> 0 | D70: =SUM(D67:D69) -> 0
A71: Leased Equipment TOTAL / acre | B71: =B70/C6 -> 0 | D71: =D70/C6 -> 0
A73: Note: This budget is only a guide and is not intended as an in depth study of the cost of production of this industry. Interpretation and utilization of this information is the responsibility of the user.

Sheet Strawberry Production Info
A2: Strawberry Production in Manitoba
A4: The projected strawberry production costs in this publication have been prepared to assist you in developing your own production costs.
A7: The capital and cash input costs associated with growing strawberries in Manitoba are substantial. Detailed planning is necessary when budgeting for capital expenditures and also for the annual operating costs. The importance of good financial planning is evident by noting the large capital required for 1 acre of strawberries is significant.
A13: Commercial strawberry production in Manitoba has been an important part of diversification in the province. The majority of the strawberry farms are on a U-Pick basis; but custom picking of the crop has increased over the past few years.
A20: Strawberries are an intensely managed crop that require precise timing. Yield and quality achieved during the short 3 - 4 week picking season hinge on timely management practices of the previous year, as well as care and maintenance before picking. Growers entering the industry need these basic requirements: (1) suitable land with adequate drainage and shelterbelts, (2) access to an adequate quantity and quality of water for irrigation, (3) financial resources that permit a significant level of investment on infrastructure and input costs, (4) the ability to apply intensive management skills to the crop in a precisely timed manner, (5) the ability to determine market potential, and (6) the willingness to accept risk.
A31: It is advised that new growers should proceed on a small but graduated scale. A complete assessment of the customer base and marketing opportunities needs to be completed prior to planting the first crop of strawberries.

Sheet Assumptions
A1: Other Assumptions
A3: Fuel Costs: Includes fuel used for field work, trucking in inputs and trucking out production.
A5: Machinery Operating Costs: Includes costs for maintenance, repairs, licenses and insurance.
A7: Crop Insurance:
A8: Establishment coverage is available through MASC.
A9: Hail insurance coverage insured value based on MASC Risk Areas 2, 5, 6, & 12.
A12: Other Costs: Includes overhead expenses - hydro, telephone, accounting, buildings, supplies and insurance, etc.
A14: Land Taxes: The average cost based on land tax assessment and mill rates of a sample of municipalities growing crops less provincial tax rebate.
A16: Interest On Operating: | D16: ="Interest charges on operating costs are calculated at "&'Operating Costs'!D3*100&"% for six months." -> Interest charges on operating costs are calculated at 7% for six months.
A18: Land Cost:
A19: ="Based on approximate average land values. Budget assumed "&'Fixed Cost Input'!C8*100&"% financed at "& 'Fixed Cost Input'!B11*100&"% for "&'Fixed Cost Input'!C11&" years, plus "&'Fixed Cost Input'!C9*100&"% land equity opportunity cost. Budget can be used to estimate cashflow by removing investment cost." -> Based on approximate average land values. Budget assumed 70% financed at 6% for 20 years, plus 1.5% land equity opportunity cost. Budget can be used to estimate cashflow by removing investment cost.
A21: ="P&I Cost (based on "&TEXT('Fixed Cost Input'!C5*('Fixed Cost Input'!C6)*'Fixed Cost Input'!C8,"$#,###")&" Mortgage) = $"&TEXT('Fixed Cost Input'!C12*('Fixed Cost Input'!C6),"#,###")&" payments per year) / "&'Fixed Cost Input'!C6&" acres = $"&TEXT('Fixed Cost Input'!C12,"0.00")&"/acre)" -> P&I Cost (based on $35,000 Mortgage) = $3,051 payments per year) / 10 acres = $305.15/acre)
A22: ="Investment = (Total Investment x Owned Equity %) x Investment Rate % (eg. (($"&TEXT('Fixed Cost Input'!C5,"#,###")&" x "&'Fixed Cost Input'!C7*100&"%) x "&'Fixed Cost Input'!C9*100&"%) = $"&TEXT('Fixed Cost Input'!C13,"0.00")&"/acre)" -> Investment = (Total Investment x Owned Equity %) x Investment Rate % (eg. (($5,000 x 30%) x 1.5%) = $22.50/acre)
A24: Machinery Cost:
A25: ="Based on approximate average machinery values. Budget assumed "&'Fixed Cost Input'!G9*100&"% financed at "&'Fixed Cost Input'!G12*100&"% for "&'Fixed Cost Input'!H12&" years, depreciation costs over "&'Fixed Cost Input'!G7&" years with a "&'Fixed Cost Input'!G6*100&"% residual value, plus "&'Fixed Cost Input'!G10*100&"% machinery equity opportunity cost. Budget can be used to estimate cashflow by removing depreciation and investment cost. " -> Based on approximate average machinery values. Budget assumed 80% financed at 7% for 7 years, depreciation costs over 15 years with a 25% residual value, plus 1.5% machinery equity opportunity cost. Budget can be used to estimate cashflow by removing depreciation and investment cost.
A28: ="P&I Cost (based on "&TEXT('Fixed Cost Input'!B62*'Fixed Cost Input'!G9,"$#,###")&" Loans) = $"&TEXT('Fixed Cost Input'!G13*('Fixed Cost Input'!C6),"#,###")&" payments per year) / "&'Fixed Cost Input'!C6&" acres = $"&TEXT('Fixed Cost Input'!G13,"0.00")&"/acre)" -> P&I Cost (based on $201,740 Loans) = $20,808 payments per year) / 10 acres = $2080.79/acre)
A29: ="Depreciation (Useage Cost) = (Total Investment - Residual Value) / Years Useful Life (eg. ($"&'Fixed Cost Input'!G5&" - ($"&'Fixed Cost Input'!G5&" x "&'Fixed Cost Input'!G6*100&"%)) / "&'Fixed Cost Input'!G7&" = $"&TEXT('Fixed Cost Input'!G14,"0.00")&"/acre)" -> Depreciation (Useage Cost) = (Total Investment - Residual Value) / Years Useful Life (eg. ($14017.5 - ($14017.5 x 25%)) / 15 = $700.88/acre)
A30: ="Investment = (Total Investment x Owned Equity %) x Investment Rate % (eg. ($"&'Fixed Cost Input'!G5&" x "&'Fixed Cost Input'!G8*100&"%) x "&'Fixed Cost Input'!G10*100&"%) = $"&TEXT('Fixed Cost Input'!G15,"0.00")&"/acre)" -> Investment = (Total Investment x Owned Equity %) x Investment Rate % (eg. ($14017.5 x 20%) x 1.5%) = $168.21/acre)
A32: Depreciation Cost = Original Cost - Salvage Value
A33: =" Useful Life" -> Useful Life
A34: Investment Cost = Original Cost + Salvage Value x Investment Rate
A35: =" 2" -> 2
A36: Estimated Farmgate Values:
A37: ="Target crop prices are based on $"&'Seed, Fertilizer & Chemical'!E46&" value per pound sold." -> Target crop prices are based on $5 value per pound sold.
A38: ="Target crop yields are based on historical yield from Manitoba crop average of "&TEXT('Seed, Fertilizer & Chemical'!E45,"#,###")&" lbs/ac." -> Target crop yields are based on historical yield from Manitoba crop average of 5,367 lbs/ac.
A40: Plant Costs:
A41: Plant cost based on Prairie Fruit Growers Association member plant discount price.
A43: Miscellaneous Costs:
A44: Includes: plant costs, advertising, utilities, pails/baskets, portable washrooms, and rental & custom charges.
A46: Profitability, Breakeven & Risk Analysis Formulas:
A47: ="Gross Revenue = Price per unit x Yield per acre (eg. picking years: $"&TEXT(Summary!E34,"0.00")&"/lbs x "&Summary!E35&"lbs/ac = $"&TEXT(Summary!E36, "0.00")&"/ac)" -> Gross Revenue = Price per unit x Yield per acre (eg. picking years: $5.00/lbs x 5400lbs/ac = $27000.00/ac)
A48: ="Net Profit = Gross Revenue - Total Cost (eg. picking years: $"&TEXT(Summary!E36,"0.00")&" gross revenue - $"&TEXT(Summary!E30,"0.00")&" total cost = $"&TEXT(Summary!E42,"0.00")&" per acre)" -> Net Profit = Gross Revenue - Total Cost (eg. picking years: $27000.00 gross revenue - $12972.32 total cost = $14027.68 per acre)
A49: ="Operating Expense Ratio = (Operating Cost / Gross Revenue) x 100 (eg. picking years: $"&TEXT(Summary!E22,"0.00")&" operating expense / $"&TEXT(Summary!E36,"0.00")&" total cost = "&TEXT(Summary!E38*100,"0.0")&"%)" -> Operating Expense Ratio = (Operating Cost / Gross Revenue) x 100 (eg. picking years: $7541.14 operating expense / $27000.00 total cost = 27.9%)
A50: ="Breakeven Price = Cost / Target Yield (eg. picking years: $"&TEXT(Summary!E30,"0.00")&" / "&Summary!E35&" lbs = $"&TEXT(Summary!E49,"0.00")&" per lbs)" -> Breakeven Price = Cost / Target Yield (eg. picking years: $12972.32 / 5400 lbs = $2.40 per lbs)
A51: ="Breakeven Yield = Cost / Price per Unit (eg. picking years: $"&TEXT(Summary!E30,"0.00")&" / $"&TEXT(Summary!E34,"0.00")&" lbs = "&TEXT(Summary!E54,"0.0")&" lbs)" -> Breakeven Yield = Cost / Price per Unit (eg. picking years: $12972.32 / $5.00 lbs = 2594.0 lbs)
A52: ="Breakeven Yield Risk Ratio = (Yield per Acre / Breakeven Yield) x 100 (eg. picking years: "&Summary!E35&" lbs/ac / "&TEXT(Summary!E54,"0.0")&" bu BE = "&ROUND(Summary!E56*100,0)&"%)" -> Breakeven Yield Risk Ratio = (Yield per Acre / Breakeven Yield) x 100 (eg. picking years: 5400 lbs/ac / 2594.0 bu BE = 208%)
L54: June, 2025
